[Event "Titled Tuesday Blitz March 15 Late 2022"]
[White "Chiu, Isaac"]
[Black "Batsiashvili, Nino"]
[WhiteFideId "30900654"]
[BlackFideId "13602993"]
[WhiteElo "2117"]
[BlackElo "2192"]
[Result "1-0"]
[Round "05"]
[TimeControl "180+1"]
[Date "2022.03.16"]
[WhiteClock "0:01:28"]
[BlackClock "0:00:07"]

1. e3 {[%clk 0:03:00]}  d5 {[%clk 0:02:54]} 2. g4 {[%clk 0:03:00]}  c5 {[%clk 0:02:50]} 3. Bg2 {[%clk 0:02:58]}  Nc6 {[%clk 0:02:50]} 4. b3 {[%clk 0:02:58]}  e5 {[%clk 0:02:49]} 5. Bb2 {[%clk 0:02:57]}  Be6 {[%clk 0:02:49]} 6. h4 {[%clk 0:02:56]}  Qd7 {[%clk 0:02:43]} 7. g5 {[%clk 0:02:56]}  h6 {[%clk 0:02:43]} 8. d3 {[%clk 0:02:51]}  hxg5 {[%clk 0:02:42]} 9. hxg5 {[%clk 0:02:51]}  Rxh1 {[%clk 0:02:43]} 10. Bxh1 {[%clk 0:02:52]}  O-O-O {[%clk 0:02:28]} 11. Qh5 {[%clk 0:02:51]}  g6 {[%clk 0:02:23]} 12. Qh7 {[%clk 0:02:37]}  Nge7 {[%clk 0:02:20]} 13. Nd2 {[%clk 0:02:25]}  Nf5 {[%clk 0:02:20]} 14. a3 {[%clk 0:02:22]}  Bg7 {[%clk 0:02:15]} 15. Qh2 {[%clk 0:02:23]}  Rh8 {[%clk 0:02:14]} 16. Qg2 {[%clk 0:02:23]}  Rh5 {[%clk 0:02:00]} 17. O-O-O {[%clk 0:02:16]}  Qd8 {[%clk 0:01:55]} 18. Ngf3 {[%clk 0:02:14]}  a5 {[%clk 0:01:35]} 19. e4 {[%clk 0:02:07]}  Nfe7 {[%clk 0:01:09]} 20. exd5 {[%clk 0:02:03]}  Nxd5 {[%clk 0:01:10]} 21. a4 {[%clk 0:01:50]}  Nf4 {[%clk 0:01:07]} 22. Qf1 {[%clk 0:01:50]}  Nb4 {[%clk 0:00:54]} 23. Ne4 {[%clk 0:01:47]}  Qc7 {[%clk 0:00:45]} 24. Kb1 {[%clk 0:01:44]}  Rh8 {[%clk 0:00:35]} 25. Nfd2 {[%clk 0:01:43]}  Rd8 {[%clk 0:00:21]} 26. Nc4 {[%clk 0:01:43]}  Bxc4 {[%clk 0:00:19]} 27. dxc4 {[%clk 0:01:41]}  Ne6 {[%clk 0:00:15]} 28. Nc3 {[%clk 0:01:37]}  Rxd1+ {[%clk 0:00:13]} 29. Qxd1 {[%clk 0:01:36]}  Nd4 {[%clk 0:00:14]} 30. Be4 {[%clk 0:01:36]}  Qd8 {[%clk 0:00:13]} 31. Qg4+ {[%clk 0:01:35]}  Qd7 {[%clk 0:00:12]} 32. Qh4 {[%clk 0:01:30]}  Kb8 {[%clk 0:00:09]} 33. Qh7 {[%clk 0:01:29]}  Bf8 {[%clk 0:00:09]} 34. Qh8 {[%clk 0:01:30]}  Qd6 {[%clk 0:00:08]} 35. Nb5 {[%clk 0:01:27]}  Nxb5 {[%clk 0:00:07]} 36. Bxe5 {[%clk 0:01:28]}  Qxe5 {[%clk 0:00:06]} 37. Qxe5+ {[%clk 0:01:27]}  Bd6 {[%clk 0:00:07]} 38. Qe8+ {[%clk 0:01:27]}  Ka7 {[%clk 0:00:06]} 39. Qxb5 {[%clk 0:01:28]}  Bc7 {[%clk 0:00:07]} 40. Qxb7# {[%clk 0:01:28]} 1-0


[Site "https://www.chess.com"]

[Event "Titled Tuesday Blitz March 15 Late 2022"]
[White "Clawitter, Craig"]
[Black "Ciolek, Andreas"]
[WhiteFideId "2023105"]
[BlackFideId "12906727"]
[WhiteElo "2216"]
[BlackElo "2215"]
[Result "0-1"]
[Round "05"]
[TimeControl "180+1"]
[Date "2022.03.16"]
[WhiteClock "0:00:01"]
[BlackClock "0:00:50"]

1. e4 {[%clk 0:02:46]}  c5 {[%clk 0:02:59]} 2. Nf3 {[%clk 0:02:45]}  d6 {[%clk 0:03:00]} 3. d4 {[%clk 0:02:45]}  cxd4 {[%clk 0:03:00]} 4. Nxd4 {[%clk 0:02:46]}  Nf6 {[%clk 0:03:01]} 5. Nc3 {[%clk 0:02:46]}  a6 {[%clk 0:03:02]} 6. Be3 {[%clk 0:02:46]}  e5 {[%clk 0:03:02]} 7. Nb3 {[%clk 0:02:46]}  Be7 {[%clk 0:03:03]} 8. f3 {[%clk 0:02:47]}  Be6 {[%clk 0:03:03]} 9. Qd2 {[%clk 0:02:47]}  h5 {[%clk 0:03:01]} 10. Nd5 {[%clk 0:02:45]}  Bxd5 {[%clk 0:02:52]} 11. exd5 {[%clk 0:02:46]}  Nbd7 {[%clk 0:02:53]} 12. Be2 {[%clk 0:02:36]}  a5 {[%clk 0:02:51]} 13. Rc1 {[%clk 0:01:57]}  a4 {[%clk 0:02:36]} 14. Na1 {[%clk 0:01:55]}  Qc7 {[%clk 0:02:31]} 15. O-O {[%clk 0:01:43]}  O-O {[%clk 0:02:30]} 16. c4 {[%clk 0:01:38]}  Nc5 {[%clk 0:02:27]} 17. Nc2 {[%clk 0:01:19]}  Qd7 {[%clk 0:02:19]} 18. Bxc5 {[%clk 0:01:09]}  dxc5 {[%clk 0:02:17]} 19. Ne3 {[%clk 0:00:59]}  Bd6 {[%clk 0:02:13]} 20. Bd3 {[%clk 0:00:52]}  g6 {[%clk 0:02:13]} 21. Nd1 {[%clk 0:00:32]}  Rae8 {[%clk 0:02:08]} 22. Qh6 {[%clk 0:00:24]}  e4 {[%clk 0:02:01]} 23. fxe4 {[%clk 0:00:19]}  Nxe4 {[%clk 0:02:02]} 24. Nf2 {[%clk 0:00:14]}  Nxf2 {[%clk 0:01:53]} 25. Rxf2 {[%clk 0:00:15]}  Qg4 {[%clk 0:01:51]} 26. Rcf1 {[%clk 0:00:12]}  Bxh2+ {[%clk 0:01:48]} 27. Kxh2 {[%clk 0:00:11]}  Qh4+ {[%clk 0:01:48]} 28. Kg1 {[%clk 0:00:10]}  Qd4 {[%clk 0:01:21]} 29. Bxg6 {[%clk 0:00:09]}  fxg6 {[%clk 0:01:16]} 30. Qxg6+ {[%clk 0:00:09]}  Kh8 {[%clk 0:01:13]} 31. Qxh5+ {[%clk 0:00:09]}  Kg7 {[%clk 0:01:13]} 32. Qg5+ {[%clk 0:00:09]}  Kh7 {[%clk 0:01:10]} 33. Qh5+ {[%clk 0:00:08]}  Kg7 {[%clk 0:01:10]} 34. Qh3 {[%clk 0:00:07]}  Rxf2 {[%clk 0:01:09]} 35. Qg3+ {[%clk 0:00:07]}  Kh8 {[%clk 0:01:01]} 36. Qxf2 {[%clk 0:00:07]}  Qxc4 {[%clk 0:01:02]} 37. Qf6+ {[%clk 0:00:07]}  Kh7 {[%clk 0:00:56]} 38. Qf7+ {[%clk 0:00:07]}  Kh6 {[%clk 0:00:55]} 39. Rf6+ {[%clk 0:00:06]}  Kg5 {[%clk 0:00:54]} 40. Qg6+ {[%clk 0:00:05]}  Kh4 {[%clk 0:00:55]} 41. Qh6+ {[%clk 0:00:05]}  Kg3 {[%clk 0:00:53]} 42. Qg7+ {[%clk 0:00:05]}  Qg4 {[%clk 0:00:51]} 43. Qxg4+ {[%clk 0:00:02]}  Kxg4 {[%clk 0:00:52]} 44. Re6 {[%clk 0:00:02]}  Rd8 {[%clk 0:00:51]} 45. d6 {[%clk 0:00:03]}  Kf5 {[%clk 0:00:51]} 46. Rh6 {[%clk 0:00:02]}  b5 {[%clk 0:00:51]} 47. Kf2 {[%clk 0:00:02]}  b4 {[%clk 0:00:50]} 48. Ke3 {[%clk 0:00:02]}  Ke5 {[%clk 0:00:50]} 49. Kd3 {[%clk 0:00:02]}  Kd5 {[%clk 0:00:50]} 50. g4 {[%clk 0:00:01]}  c4+ {[%clk 0:00:51]} 51. Kc2 {[%clk 0:00:01]}  Kd4 {[%clk 0:00:50]} 0-1


[Site "https://www.chess.com"]

[Event "Titled Tuesday Blitz March 15 Late 2022"]
[White "Costachi, Mihnea"]
[Black "Ozates, Tuna"]
[WhiteFideId "1217518"]
[BlackFideId "6354521"]
[WhiteElo "2464"]
[BlackElo "1887"]
[Result "1-0"]
[Round "05"]
[TimeControl "180+1"]
[Date "2022.03.15"]
[WhiteClock "0:01:04"]
[BlackClock "0:00:10"]

1. d4 {[%clk 0:02:30]}  Nf6 {[%clk 0:02:58]} 2. c4 {[%clk 0:02:28]}  g6 {[%clk 0:02:57]} 3. Nc3 {[%clk 0:02:28]}  Bg7 {[%clk 0:02:58]} 4. e4 {[%clk 0:02:28]}  O-O {[%clk 0:02:59]} 5. Be2 {[%clk 0:02:29]}  d6 {[%clk 0:02:59]} 6. Bg5 {[%clk 0:02:30]}  Nbd7 {[%clk 0:02:50]} 7. Qd2 {[%clk 0:02:29]}  c6 {[%clk 0:02:48]} 8. f3 {[%clk 0:02:29]}  a6 {[%clk 0:02:49]} 9. Nh3 {[%clk 0:02:27]}  b5 {[%clk 0:02:49]} 10. Nf2 {[%clk 0:02:27]}  Bb7 {[%clk 0:02:36]} 11. O-O {[%clk 0:02:26]}  bxc4 {[%clk 0:02:35]} 12. Bxc4 {[%clk 0:02:25]}  c5 {[%clk 0:02:11]} 13. dxc5 {[%clk 0:02:22]}  Nxc5 {[%clk 0:02:10]} 14. Bh6 {[%clk 0:02:22]}  Qa5 {[%clk 0:02:08]} 15. Bxg7 {[%clk 0:02:22]}  Kxg7 {[%clk 0:02:08]} 16. a3 {[%clk 0:02:17]}  Na4 {[%clk 0:02:04]} 17. b4 {[%clk 0:02:12]}  Qc7 {[%clk 0:01:46]} 18. Nxa4 {[%clk 0:02:13]}  Qxc4 {[%clk 0:01:46]} 19. Nb6 {[%clk 0:02:13]}  Qe6 {[%clk 0:01:45]} 20. Nxa8 {[%clk 0:02:13]}  Rxa8 {[%clk 0:01:45]} 21. Rac1 {[%clk 0:02:12]}  Qd7 {[%clk 0:01:37]} 22. Rc2 {[%clk 0:02:09]}  a5 {[%clk 0:01:37]} 23. bxa5 {[%clk 0:02:08]}  Qa4 {[%clk 0:01:36]} 24. Rb1 {[%clk 0:02:05]}  Bc8 {[%clk 0:01:33]} 25. Rc7 {[%clk 0:01:55]}  Bd7 {[%clk 0:01:22]} 26. Rbb7 {[%clk 0:01:43]}  Bc6 {[%clk 0:00:53]} 27. Rb4 {[%clk 0:01:38]}  Qxa3 {[%clk 0:00:43]} 28. Rxc6 {[%clk 0:01:37]}  Rxa5 {[%clk 0:00:43]} 29. Rc1 {[%clk 0:01:30]}  Nh5 {[%clk 0:00:39]} 30. Qb2+ {[%clk 0:01:23]}  Qxb2 {[%clk 0:00:39]} 31. Rxb2 {[%clk 0:01:24]}  Nf4 {[%clk 0:00:39]} 32. g3 {[%clk 0:01:24]}  Ne6 {[%clk 0:00:38]} 33. Kg2 {[%clk 0:01:22]}  Nc5 {[%clk 0:00:38]} 34. Rc3 {[%clk 0:01:18]}  Ra1 {[%clk 0:00:34]} 35. Rbc2 {[%clk 0:01:16]}  Ne6 {[%clk 0:00:34]} 36. Rd3 {[%clk 0:01:15]}  h5 {[%clk 0:00:33]} 37. f4 {[%clk 0:01:15]}  h4 {[%clk 0:00:31]} 38. Nh3 {[%clk 0:01:09]}  hxg3 {[%clk 0:00:31]} 39. hxg3 {[%clk 0:01:10]}  Re1 {[%clk 0:00:30]} 40. Kf3 {[%clk 0:01:08]}  f5 {[%clk 0:00:24]} 41. exf5 {[%clk 0:01:08]}  gxf5 {[%clk 0:00:25]} 42. Ng5 {[%clk 0:01:08]}  Nxg5+ {[%clk 0:00:20]} 43. fxg5 {[%clk 0:01:08]}  Kg6 {[%clk 0:00:20]} 44. Re2 {[%clk 0:01:07]}  Rf1+ {[%clk 0:00:21]} 45. Kg2 {[%clk 0:01:08]}  Rc1 {[%clk 0:00:18]} 46. Rxe7 {[%clk 0:01:08]}  Kxg5 {[%clk 0:00:18]} 47. Rxd6 {[%clk 0:01:08]}  Rc8 {[%clk 0:00:13]} 48. Rg7+ {[%clk 0:01:05]}  Kh5 {[%clk 0:00:13]} 49. Kh3 {[%clk 0:01:05]}  Rh8 {[%clk 0:00:11]} 50. Rf6 {[%clk 0:01:04]}  f4 {[%clk 0:00:10]} 51. g4# {[%clk 0:01:04]} 1-0


[Site "https://www.chess.com"]

[Event "Titled Tuesday Blitz March 15 Late 2022"]
[White "Demchenko, Anton"]
[Black "Plazuelo Pascual, Juan"]
[WhiteFideId "4160258"]
[BlackFideId "32059566"]
[WhiteElo "2539"]
[BlackElo "2364"]
[Result "1-0"]
[Round "05"]
[TimeControl "180+1"]
[Date "2022.03.16"]
[WhiteClock "0:00:23"]
[BlackClock "0:00:05"]

1. e4 {[%clk 0:02:59]}  e5 {[%clk 0:02:59]} 2. Nf3 {[%clk 0:02:59]}  Nf6 {[%clk 0:03:00]} 3. Nxe5 {[%clk 0:02:58]}  d6 {[%clk 0:03:01]} 4. Nf3 {[%clk 0:02:59]}  Nxe4 {[%clk 0:03:01]} 5. Nc3 {[%clk 0:03:00]}  Nxc3 {[%clk 0:03:01]} 6. dxc3 {[%clk 0:03:01]}  Be7 {[%clk 0:03:02]} 7. Bf4 {[%clk 0:03:00]}  Nd7 {[%clk 0:02:59]} 8. Qd2 {[%clk 0:03:00]}  Nf6 {[%clk 0:02:59]} 9. O-O-O {[%clk 0:03:00]}  O-O {[%clk 0:02:40]} 10. Bd3 {[%clk 0:02:56]}  c5 {[%clk 0:02:40]} 11. Rde1 {[%clk 0:02:48]}  Re8 {[%clk 0:02:37]} 12. c4 {[%clk 0:02:43]}  b5 {[%clk 0:02:27]} 13. cxb5 {[%clk 0:02:40]}  a6 {[%clk 0:02:27]} 14. Kb1 {[%clk 0:02:25]}  Qb6 {[%clk 0:02:25]} 15. a4 {[%clk 0:02:08]}  d5 {[%clk 0:02:13]} 16. a5 {[%clk 0:02:04]}  Qb7 {[%clk 0:02:04]} 17. b6 {[%clk 0:02:04]}  d4 {[%clk 0:01:53]} 18. Bc4 {[%clk 0:02:00]}  Bg4 {[%clk 0:01:53]} 19. Ne5 {[%clk 0:01:58]}  Bh5 {[%clk 0:01:52]} 20. Rhg1 {[%clk 0:01:49]}  Nd5 {[%clk 0:01:52]} 21. g4 {[%clk 0:01:44]}  Bg6 {[%clk 0:01:52]} 22. Nxg6 {[%clk 0:01:33]}  hxg6 {[%clk 0:01:53]} 23. Re5 {[%clk 0:01:13]}  Nb4 {[%clk 0:01:51]} 24. Rge1 {[%clk 0:01:09]}  Nc6 {[%clk 0:01:51]} 25. R5e2 {[%clk 0:01:05]}  Red8 {[%clk 0:01:51]} 26. Bc7 {[%clk 0:01:01]}  Rd7 {[%clk 0:01:50]} 27. h4 {[%clk 0:00:54]}  Rxc7 {[%clk 0:01:33]} 28. bxc7 {[%clk 0:00:54]}  Qxc7 {[%clk 0:01:34]} 29. Bd5 {[%clk 0:00:51]}  Bf8 {[%clk 0:01:35]} 30. h5 {[%clk 0:00:38]}  gxh5 {[%clk 0:01:33]} 31. gxh5 {[%clk 0:00:39]}  Rb8 {[%clk 0:01:33]} 32. Re8 {[%clk 0:00:37]}  Rxe8 {[%clk 0:01:00]} 33. Rxe8 {[%clk 0:00:38]}  Qd7 {[%clk 0:01:00]} 34. Bxc6 {[%clk 0:00:36]}  Qxc6 {[%clk 0:01:01]} 35. Qe2 {[%clk 0:00:36]}  Qc7 {[%clk 0:00:19]} 36. b3 {[%clk 0:00:30]}  Qd7 {[%clk 0:00:13]} 37. Rb8 {[%clk 0:00:25]}  d3 {[%clk 0:00:04]} 38. Qxd3 {[%clk 0:00:24]}  Qc7 {[%clk 0:00:05]} 39. Qd8 {[%clk 0:00:23]} 1-0


[Site "https://www.chess.com"]

[Event "Titled Tuesday Blitz March 15 Late 2022"]
[White "Eisen, Zane"]
[Black "Hoffmann, Asa"]
[WhiteFideId "2098750"]
[BlackFideId "2001470"]
[WhiteElo "2027"]
[BlackElo "2117"]
[Result "0-1"]
[Round "05"]
[TimeControl "180+1"]
[Date "2022.03.16"]
[WhiteClock "0:00:02"]
[BlackClock "0:01:06"]

1. e4 {[%clk 0:03:00]}  d6 {[%clk 0:02:59]} 2. d4 {[%clk 0:02:58]}  Nf6 {[%clk 0:02:53]} 3. Nc3 {[%clk 0:02:57]}  c6 {[%clk 0:02:52]} 4. Nf3 {[%clk 0:02:53]}  Bg4 {[%clk 0:02:51]} 5. Bc4 {[%clk 0:02:49]}  e6 {[%clk 0:02:49]} 6. h3 {[%clk 0:02:48]}  Bh5 {[%clk 0:02:47]} 7. Be3 {[%clk 0:02:39]}  d5 {[%clk 0:02:44]} 8. Bd3 {[%clk 0:02:36]}  Bb4 {[%clk 0:02:43]} 9. e5 {[%clk 0:02:04]}  Ne4 {[%clk 0:02:42]} 10. O-O {[%clk 0:01:38]}  Bxc3 {[%clk 0:02:30]} 11. bxc3 {[%clk 0:01:39]}  Nxc3 {[%clk 0:02:29]} 12. Qd2 {[%clk 0:01:33]}  Bxf3 {[%clk 0:02:27]} 13. Qxc3 {[%clk 0:01:32]}  Be4 {[%clk 0:02:22]} 14. f4 {[%clk 0:01:21]}  f5 {[%clk 0:02:15]} 15. exf6 {[%clk 0:01:17]}  Qxf6 {[%clk 0:02:14]} 16. Bxe4 {[%clk 0:01:09]}  dxe4 {[%clk 0:02:14]} 17. Qb4 {[%clk 0:01:10]}  b6 {[%clk 0:02:11]} 18. Qd6 {[%clk 0:01:02]}  Kf7 {[%clk 0:01:53]} 19. f5 {[%clk 0:00:56]}  e5 {[%clk 0:01:46]} 20. Qc7+ {[%clk 0:00:46]}  Qe7 {[%clk 0:01:40]} 21. Qxe7+ {[%clk 0:00:39]}  Kxe7 {[%clk 0:01:39]} 22. dxe5 {[%clk 0:00:39]}  Nd7 {[%clk 0:01:36]} 23. Bg5+ {[%clk 0:00:36]}  Ke8 {[%clk 0:01:32]} 24. Rfe1 {[%clk 0:00:34]}  Nc5 {[%clk 0:01:29]} 25. Rad1 {[%clk 0:00:33]}  Kf7 {[%clk 0:01:27]} 26. e6+ {[%clk 0:00:29]}  Kf8 {[%clk 0:01:23]} 27. Rd7 {[%clk 0:00:16]}  Nxd7 {[%clk 0:01:19]} 28. exd7 {[%clk 0:00:16]}  Kf7 {[%clk 0:01:19]} 29. Rxe4 {[%clk 0:00:14]}  Rad8 {[%clk 0:01:14]} 30. Re7+ {[%clk 0:00:09]}  Kf8 {[%clk 0:01:14]} 31. Kf2 {[%clk 0:00:02]}  h6 {[%clk 0:01:06]} 0-1


[Site "https://www.chess.com"]

[Event "Titled Tuesday Blitz March 15 Late 2022"]
[White "Goltsev, Dmitry"]
[Black "Xu, Yi"]
[WhiteFideId "24176710"]
[BlackFideId "8605564"]
[WhiteElo "2273"]
[BlackElo "2471"]
[Result "1-0"]
[Round "05"]
[TimeControl "180+1"]
[Date "2022.03.15"]
[WhiteClock "0:01:28"]
[BlackClock "0:00:33"]

1. e4 {[%clk 0:02:59]}  c5 {[%clk 0:02:59]} 2. Nf3 {[%clk 0:02:59]}  d6 {[%clk 0:03:00]} 3. d4 {[%clk 0:03:00]}  cxd4 {[%clk 0:03:00]} 4. Nxd4 {[%clk 0:03:01]}  Nf6 {[%clk 0:03:00]} 5. Nc3 {[%clk 0:03:01]}  a6 {[%clk 0:03:01]} 6. Bg5 {[%clk 0:03:01]}  e6 {[%clk 0:02:57]} 7. Qd2 {[%clk 0:03:01]}  h6 {[%clk 0:02:52]} 8. Be3 {[%clk 0:02:56]}  Ng4 {[%clk 0:02:46]} 9. O-O-O {[%clk 0:02:55]}  Nxe3 {[%clk 0:02:46]} 10. Qxe3 {[%clk 0:02:56]}  Be7 {[%clk 0:02:46]} 11. f4 {[%clk 0:02:56]}  b5 {[%clk 0:02:43]} 12. a3 {[%clk 0:02:51]}  Bb7 {[%clk 0:02:43]} 13. g4 {[%clk 0:02:47]}  Nd7 {[%clk 0:02:38]} 14. h4 {[%clk 0:02:44]}  Nc5 {[%clk 0:02:26]} 15. b4 {[%clk 0:02:34]}  Nd7 {[%clk 0:02:21]} 16. f5 {[%clk 0:02:05]}  Bxh4 {[%clk 0:02:15]} 17. Rxh4 {[%clk 0:02:00]}  Qxh4 {[%clk 0:02:14]} 18. fxe6 {[%clk 0:02:01]}  fxe6 {[%clk 0:01:44]} 19. Nxe6 {[%clk 0:02:02]}  Rc8 {[%clk 0:01:40]} 20. Nxg7+ {[%clk 0:02:01]}  Kf8 {[%clk 0:01:34]} 21. Rxd6 {[%clk 0:01:47]}  Qe7 {[%clk 0:01:24]} 22. Nf5 {[%clk 0:01:38]}  Qe5 {[%clk 0:01:24]} 23. Rxd7 {[%clk 0:01:30]}  Rxc3 {[%clk 0:01:24]} 24. Qb6 {[%clk 0:01:29]}  Rxc2+ {[%clk 0:00:35]} 25. Kxc2 {[%clk 0:01:28]}  Qxe4+ {[%clk 0:00:33]} 26. Bd3 {[%clk 0:01:26]}  Qc6+ {[%clk 0:00:30]} 27. Qxc6 {[%clk 0:01:26]}  Bxc6 {[%clk 0:00:31]} 28. Rd8+ {[%clk 0:01:26]}  Be8 {[%clk 0:00:30]} 29. Nd6 {[%clk 0:01:26]}  Ke7 {[%clk 0:00:31]} 30. Rxe8+ {[%clk 0:01:27]}  Rxe8 {[%clk 0:00:31]} 31. Nxe8 {[%clk 0:01:28]}  Kxe8 {[%clk 0:00:32]} 32. Kc3 {[%clk 0:01:28]}  Kd7 {[%clk 0:00:32]} 33. Kd4 {[%clk 0:01:28]}  Kd6 {[%clk 0:00:33]} 34. Bf5 {[%clk 0:01:28]} 1-0


[Site "https://www.chess.com"]

[Event "Titled Tuesday Blitz March 15 Late 2022"]
[White "Grischuk, Alexander"]
[Black "Kosteniuk, Alexandra"]
[WhiteFideId "4126025"]
[BlackFideId "4128125"]
[WhiteElo "2762"]
[BlackElo "2469"]
[Result "1-0"]
[Round "05"]
[TimeControl "180+1"]
[Date "2022.03.15"]
[WhiteClock "0:00:02"]
[BlackClock "0:00:04"]

1. d4 {[%clk 0:02:55]}  Nf6 {[%clk 0:02:59]} 2. Nf3 {[%clk 0:02:55]}  e6 {[%clk 0:02:58]} 3. Bf4 {[%clk 0:02:54]}  d5 {[%clk 0:02:57]} 4. e3 {[%clk 0:02:54]}  c5 {[%clk 0:02:56]} 5. Be2 {[%clk 0:02:49]}  Nc6 {[%clk 0:02:54]} 6. O-O {[%clk 0:02:48]}  Bd6 {[%clk 0:02:52]} 7. dxc5 {[%clk 0:02:49]}  Bxf4 {[%clk 0:02:48]} 8. exf4 {[%clk 0:02:50]}  Ne4 {[%clk 0:02:38]} 9. c3 {[%clk 0:02:39]}  Nxc5 {[%clk 0:02:34]} 10. Nbd2 {[%clk 0:02:39]}  O-O {[%clk 0:02:32]} 11. Nb3 {[%clk 0:02:39]}  b6 {[%clk 0:02:27]} 12. Nbd4 {[%clk 0:02:34]}  Nxd4 {[%clk 0:02:25]} 13. Nxd4 {[%clk 0:02:32]}  Qf6 {[%clk 0:02:23]} 14. Qd2 {[%clk 0:02:31]}  Ne4 {[%clk 0:02:15]} 15. Qe3 {[%clk 0:02:30]}  Bb7 {[%clk 0:02:14]} 16. Bd3 {[%clk 0:02:27]}  Nd6 {[%clk 0:02:10]} 17. Rfe1 {[%clk 0:02:22]}  g6 {[%clk 0:02:09]} 18. Rad1 {[%clk 0:02:20]}  Rac8 {[%clk 0:02:08]} 19. g3 {[%clk 0:02:13]}  Rfd8 {[%clk 0:02:04]} 20. h4 {[%clk 0:02:12]}  Nf5 {[%clk 0:01:44]} 21. Bxf5 {[%clk 0:02:11]}  gxf5 {[%clk 0:01:45]} 22. Qf3 {[%clk 0:02:03]}  Kh8 {[%clk 0:01:32]} 23. Qe2 {[%clk 0:01:46]}  Rg8 {[%clk 0:01:28]} 24. Qe5 {[%clk 0:01:47]}  Qxe5 {[%clk 0:01:25]} 25. Rxe5 {[%clk 0:01:48]}  Kg7 {[%clk 0:01:23]} 26. Rde1 {[%clk 0:01:46]}  Rgd8 {[%clk 0:01:19]} 27. f3 {[%clk 0:01:44]}  Ba6 {[%clk 0:01:14]} 28. Kf2 {[%clk 0:01:41]}  h5 {[%clk 0:01:10]} 29. g4 {[%clk 0:01:13]}  hxg4 {[%clk 0:01:09]} 30. fxg4 {[%clk 0:01:14]}  fxg4 {[%clk 0:01:06]} 31. f5 {[%clk 0:01:13]}  exf5 {[%clk 0:00:58]} 32. Nxf5+ {[%clk 0:01:13]}  Kf8 {[%clk 0:00:47]} 33. R1e3 {[%clk 0:01:04]}  Rc6 {[%clk 0:00:47]} 34. Kg3 {[%clk 0:01:03]}  Rf6 {[%clk 0:00:40]} 35. Nd4 {[%clk 0:00:24]}  Bc8 {[%clk 0:00:38]} 36. Rh5 {[%clk 0:00:24]}  Kg7 {[%clk 0:00:36]} 37. Re7 {[%clk 0:00:24]}  Rf1 {[%clk 0:00:25]} 38. Rhe5 {[%clk 0:00:18]}  Rg1+ {[%clk 0:00:24]} 39. Kf2 {[%clk 0:00:18]}  Rb1 {[%clk 0:00:24]} 40. Re2 {[%clk 0:00:17]}  a5 {[%clk 0:00:21]} 41. Rc7 {[%clk 0:00:16]}  Bd7 {[%clk 0:00:13]} 42. Kg3 {[%clk 0:00:12]}  Kf6 {[%clk 0:00:12]} 43. Rb7 {[%clk 0:00:11]}  Kg7 {[%clk 0:00:09]} 44. Rxb6 {[%clk 0:00:09]}  f5 {[%clk 0:00:10]} 45. Rd6 {[%clk 0:00:08]}  Rf1 {[%clk 0:00:07]} 46. Kg2 {[%clk 0:00:05]}  Rf4 {[%clk 0:00:04]} 47. Re7+ {[%clk 0:00:01]}  Kf8 {[%clk 0:00:04]} 48. Rexd7 {[%clk 0:00:02]} 1-0


[Site "https://www.chess.com"]

[Event "Titled Tuesday Blitz March 15 Late 2022"]
[White "Hakobyan, Aram"]
[Black "Holt, Conrad"]
[WhiteFideId "13306677"]
[BlackFideId "2034387"]
[WhiteElo "2557"]
[BlackElo "2586"]
[Result "0-1"]
[Round "05"]
[TimeControl "180+1"]
[Date "2022.03.15"]
[WhiteClock "0:00:08"]
[BlackClock "0:00:24"]

1. e4 {[%clk 0:03:00]}  e6 {[%clk 0:03:00]} 2. d4 {[%clk 0:02:57]}  d5 {[%clk 0:03:00]} 3. Nc3 {[%clk 0:02:58]}  Nf6 {[%clk 0:02:56]} 4. Bg5 {[%clk 0:02:57]}  dxe4 {[%clk 0:02:56]} 5. Nxe4 {[%clk 0:02:58]}  Be7 {[%clk 0:02:56]} 6. Nxf6+ {[%clk 0:02:56]}  Bxf6 {[%clk 0:02:57]} 7. Bxf6 {[%clk 0:02:56]}  Qxf6 {[%clk 0:02:57]} 8. Nf3 {[%clk 0:02:57]}  c5 {[%clk 0:02:57]} 9. Bb5+ {[%clk 0:02:55]}  Bd7 {[%clk 0:02:57]} 10. Qe2 {[%clk 0:02:55]}  cxd4 {[%clk 0:02:55]} 11. Bxd7+ {[%clk 0:02:56]}  Nxd7 {[%clk 0:02:55]} 12. O-O-O {[%clk 0:02:56]}  O-O {[%clk 0:02:51]} 13. Rxd4 {[%clk 0:02:57]}  Nc5 {[%clk 0:02:50]} 14. Rhd1 {[%clk 0:02:56]}  Rac8 {[%clk 0:02:46]} 15. Kb1 {[%clk 0:02:55]}  Qg6 {[%clk 0:02:40]} 16. Ne5 {[%clk 0:02:54]}  Qxg2 {[%clk 0:02:25]} 17. Rg4 {[%clk 0:02:45]}  Qxh2 {[%clk 0:02:25]} 18. Nf3 {[%clk 0:01:30]}  Qh6 {[%clk 0:02:20]} 19. Rh4 {[%clk 0:01:26]}  Qf6 {[%clk 0:02:18]} 20. Rdh1 {[%clk 0:01:25]}  h6 {[%clk 0:01:56]} 21. Ne5 {[%clk 0:01:25]}  Rfd8 {[%clk 0:01:43]} 22. Ng4 {[%clk 0:01:24]}  Qg6 {[%clk 0:01:32]} 23. Nxh6+ {[%clk 0:01:08]}  Kf8 {[%clk 0:01:29]} 24. Ng4 {[%clk 0:01:06]}  Qe4 {[%clk 0:01:23]} 25. Ne3 {[%clk 0:00:55]}  Qe5 {[%clk 0:01:15]} 26. Rh5 {[%clk 0:00:52]}  f5 {[%clk 0:01:12]} 27. Qb5 {[%clk 0:00:23]}  Kf7 {[%clk 0:00:54]} 28. Rh7 {[%clk 0:00:19]}  a6 {[%clk 0:00:48]} 29. Qb4 {[%clk 0:00:14]}  Qd4 {[%clk 0:00:35]} 30. Qxd4 {[%clk 0:00:06]}  Rxd4 {[%clk 0:00:35]} 31. Rg1 {[%clk 0:00:06]}  Rg8 {[%clk 0:00:35]} 32. Rhh1 {[%clk 0:00:02]}  Ne4 {[%clk 0:00:30]} 33. Rc1 {[%clk 0:00:01]}  Nxf2 {[%clk 0:00:27]} 34. Rhf1 {[%clk 0:00:01]}  Ne4 {[%clk 0:00:27]} 35. Ka1 {[%clk 0:00:02]}  g5 {[%clk 0:00:25]} 36. c3 {[%clk 0:00:03]}  Rd3 {[%clk 0:00:25]} 37. Nc4 {[%clk 0:00:03]}  Kf6 {[%clk 0:00:25]} 38. Na5 {[%clk 0:00:03]}  Nd6 {[%clk 0:00:24]} 39. Rce1 {[%clk 0:00:03]}  g4 {[%clk 0:00:22]} 40. Nb3 {[%clk 0:00:04]}  Rd5 {[%clk 0:00:17]} 41. Nd4 {[%clk 0:00:03]}  e5 {[%clk 0:00:15]} 42. Nc2 {[%clk 0:00:04]}  Nc4 {[%clk 0:00:14]} 43. b3 {[%clk 0:00:03]}  Nd2 {[%clk 0:00:14]} 44. Rg1 {[%clk 0:00:02]}  Nf3 {[%clk 0:00:14]} 45. Ne3 {[%clk 0:00:02]}  Rd7 {[%clk 0:00:15]} 46. Rgf1 {[%clk 0:00:01]}  Nxe1 {[%clk 0:00:15]} 47. Rxf5+ {[%clk 0:00:02]}  Ke6 {[%clk 0:00:15]} 48. Rh5 {[%clk 0:00:02]}  g3 {[%clk 0:00:15]} 49. Rh6+ {[%clk 0:00:03]}  Kf7 {[%clk 0:00:16]} 50. Rh7+ {[%clk 0:00:03]}  Rg7 {[%clk 0:00:16]} 51. Rxg7+ {[%clk 0:00:02]}  Kxg7 {[%clk 0:00:17]} 52. Nf5+ {[%clk 0:00:03]}  Kf6 {[%clk 0:00:17]} 53. Nxg3 {[%clk 0:00:04]}  Ke6 {[%clk 0:00:17]} 54. Kb2 {[%clk 0:00:04]}  Nd3+ {[%clk 0:00:18]} 55. Ka3 {[%clk 0:00:05]}  Nc5 {[%clk 0:00:18]} 56. b4 {[%clk 0:00:05]}  Rd3 {[%clk 0:00:18]} 57. Ne2 {[%clk 0:00:05]}  Ne4 {[%clk 0:00:18]} 58. Kb3 {[%clk 0:00:06]}  b5 {[%clk 0:00:18]} 59. a4 {[%clk 0:00:05]}  Kd5 {[%clk 0:00:19]} 60. axb5 {[%clk 0:00:05]}  axb5 {[%clk 0:00:20]} 61. Ng1 {[%clk 0:00:03]}  Rxc3+ {[%clk 0:00:19]} 62. Kb2 {[%clk 0:00:04]}  Re3 {[%clk 0:00:20]} 63. Ka2 {[%clk 0:00:04]}  Kc4 {[%clk 0:00:20]} 64. Kb2 {[%clk 0:00:04]}  Kxb4 {[%clk 0:00:21]} 65. Kc2 {[%clk 0:00:05]}  Kc4 {[%clk 0:00:21]} 66. Kb2 {[%clk 0:00:06]}  b4 {[%clk 0:00:22]} 67. Kc2 {[%clk 0:00:06]}  b3+ {[%clk 0:00:22]} 68. Kb2 {[%clk 0:00:07]}  Kb4 {[%clk 0:00:23]} 69. Ka1 {[%clk 0:00:06]}  Ka3 {[%clk 0:00:23]} 70. Ne2 {[%clk 0:00:07]}  Rxe2 {[%clk 0:00:23]} 71. Kb1 {[%clk 0:00:08]}  Re1# {[%clk 0:00:24]} 0-1


[Site "https://www.chess.com"]